fUST/lending_fUST_20241104
["ID","MTS","AMOUNT","RATE_DAILY","PERIOD"]
[341243818,1730724647491,-268.063346,0.000275,7]
[341243819,1730724647501,-268.063346,0.000275,7]
[341243820,1730724647511,-151.0,0.000275,2]
[341243821,1730724647521,-593.0,0.00027671,2]
[341243822,1730724647531,-153.0,0.00027836,2]
[341243823,1730724647541,-153.0,0.00027836,2]
[341243824,1730724647550,-153.0,0.00027836,2]
[341243825,1730724647560,-153.0,0.00027836,2]
[341243826,1730724647569,-153.0,0.00027836,2]
[341243827,1730724647578,-151.0,0.000279,2]
[341243828,1730724647588,-151.0,0.000279,7]
[341243829,1730724647598,-500.0,0.000279,7]
[341243830,1730724647607,-150.0,0.00027922,2]
[341243831,1730724647617,-1141.0,0.00027922,2]
[341243832,1730724647627,-529.0,0.00027922,2]
[341243833,1730724647637,-2393.0,0.00027922,2]
[341243834,1730724647646,-150.0,0.00027922,2]
[341243835,1730724647656,-798.648,0.00027922,2]
[341243836,1730724647666,-150.0,0.00027922,2]
[341243837,1730724647675,-346.2152694,0.00028143,2]
[341243838,1730724647685,-181.9898105,0.00028174,2]
[341243839,1730724647695,-201.27540188,0.00028174,7]
[341243840,1730724647704,-500.0,0.00028174,7]
[341243841,1730724647714,-410.42600659,0.00028231,5]
[341243842,1730724647723,-163.7546425,0.00028301,2]
[341243843,1730724647734,-500.0,0.00028448,7]
[341243844,1730724647743,-600.0,0.00028657,2]
[341243845,1730724647753,-151.0,0.00028658,7]
[341243846,1730724647763,-151.0,0.00028658,7]
[341243847,1730724647773,-151.0,0.00028658,7]
[341243848,1730724647783,-157.408712,0.00028658,7]
[341243849,1730724647793,-151.0,0.00028658,7]
[341243850,1730724647802,-151.0,0.00028658,7]
[341243851,1730724647813,-151.0,0.00028658,7]
[341243852,1730724647823,-151.0,0.00028658,7]
[341243853,1730724647832,-151.0,0.00028658,7]
[341243854,1730724647841,-151.0,0.00028658,7]
[341243855,1730724647851,-226.839716,0.00028658,7]
[341243856,1730724647861,-226.839716,0.00028658,7]
[341243857,1730724647870,-216.767603,0.00028658,7]
[341243858,1730724647879,-216.767603,0.00028658,7]
[341243859,1730724647889,-151.0,0.00028658,7]
[341243860,1730724647898,-241.247042,0.00028658,7]
[341243861,1730724647908,-324.094821,0.00028658,7]
[341243862,1730724647917,-324.094821,0.00028658,7]
[341243863,1730724647927,-151.0,0.00028658,7]
[341243864,1730724647937,-344.1886,0.00028658,7]
[341243865,1730724647946,-344.1886,0.00028658,7]
[341243866,1730724647955,-151.0,0.00028658,7]
[341243867,1730724647965,-200.931974,0.00028658,7]
[341243868,1730724647974,-200.931974,0.00028658,7]
[341243869,1730724647984,-236.532952,0.00028658,7]
[341243870,1730724647993,-236.532952,0.00028658,7]
[341243871,1730724648003,-253.424493,0.00028658,7]
[341243872,1730724648013,-253.424493,0.00028658,7]
[341243873,1730724648023,-151.0,0.00028658,7]
[341243874,1730724648032,-447.432504,0.00028658,7]
[341243875,1730724648042,-151.0,0.00028658,7]
[341243876,1730724648051,-447.432504,0.00028658,7]
[341243877,1730724648062,-268.063346,0.00028658,7]
[341243878,1730724648071,-268.063346,0.00028658,7]
[341243879,1730724648080,-151.0,0.00028658,2]
[341243880,1730724648091,-493.25084273,0.00028693,5]
[341243881,1730724648101,-500.0,0.00028693,5]
[341243882,1730724648111,-502.35358066,0.00028693,5]
[341243883,1730724648122,-500.0,0.00028693,5]
[341243884,1730724648132,-501.09001203,0.00028693,5]
[341243885,1730724648142,-500.6839231,0.00028693,5]
[341243886,1730724648152,-1019.73225328,0.000287,2]
[341243887,1730724648162,-500.0,0.00028722,7]
[341243888,1730724648172,-163.0,0.00028767,2]
[341243889,1730724648182,-593.0,0.00028767,2]
[341243890,1730724648192,-163.0,0.00028767,2]
[341243891,1730724648202,-500.0,0.00028794,5]
[341243892,1730724648214,-500.0,0.00028794,5]
[341243893,1730724648224,-505.09944298,0.00028794,5]
[341243894,1730724648234,-506.80060353,0.00028794,5]
[341243895,1730724648244,-500.84286131,0.00028794,5]
[341243896,1730724648253,-163.0,0.00028893,2]
[341243897,1730724648263,-502.6968591,0.00028995,5]
[341243898,1730724648273,-824.98743925,0.00028996,7]
[341243899,1730724648283,-158.049,0.00029,2]
[341243900,1730724648293,-500.0,0.00029075,5]
[341243901,1730724648303,-500.0,0.00029075,5]
[341243902,1730724648314,-2000.0,0.00029091,2]
[341243903,1730724648324,-500.0,0.00029315,5]
[341243904,1730724648333,-150.112233,0.000294,11]
[341243905,1730724648343,-392.3398087,0.00029853,2]
[341243906,1730724648352,-200.0,0.000299,120]
[341243907,1730724648361,-500.0,0.000299,2]
[341243908,1730724648371,-151.07,0.00029999,2]
[341243909,1730724648380,-151.0,0.0003,120]
[341243910,1730724648390,-1000.0,0.0003,2]
[341243911,1730724648402,-8419.21791201,0.0003,2]
[341243912,1730724648412,-6537.58876545,0.0003,10]
[341243913,1730724648422,-1500.0,0.0003,2]
[341243914,1730724648432,-1020.24843047,0.0003,7]
[341243915,1730724648442,-11078.09166311,0.0003,2]
[341243916,1730724648451,-2006.0,0.0003,7]
[341243917,1730724648461,-16610.9885693,0.0003,2]
[341243918,1730724648476,-3751.412676,0.0003,2]
[341243921,1730725264864,285.0,0.00033652,120]
[341243922,1730725364217,158.070418,0.00013973,2]
[341243924,1730725569020,150.0,0.00018,2]
[341243925,1730725570438,150.0,0.00014,2]
[341243926,1730725570903,150.0,0.0001,2]
[341243927,1730725576063,150.0,0.00017,30]
[341243928,1730725576539,150.0,0.00012,30]
[341243936,1730725633119,-158.070418,0.00020447,2]
[341243937,1730725633141,-150.0,0.00021,2]
[341243938,1730725633163,-150.0,0.00021,30]
[341243939,1730725633185,-157.627262,0.00024653,2]
[341243940,1730725633207,-150.0,0.00025,2]
[341243941,1730725633230,-179.3836547,0.00025641,2]
[341243942,1730725633251,-150.0,0.00026,30]
[341243943,1730725633272,-116.54554809,0.00026761,2]
[341243986,1730725832198,-65.54173861,0.00026761,2]
[341243988,1730725832208,-158.070418,0.00026921,2]
[341243990,1730725832219,-300.0,0.00026926,2]
[341243992,1730725832229,-300.0,0.00026926,2]
[341243994,1730725832239,-500.0,0.00026927,2]
[341243996,1730725832252,-231.6560801,0.00026927,2]
[341243998,1730725832263,-500.0,0.00026927,2]
[341244000,1730725832273,-500.0,0.00026927,2]
[341244002,1730725832283,-500.0,0.00026927,2]
[341244004,1730725832293,-511.87440432,0.00026927,2]
[341244006,1730725832303,-633.40603013,0.00026927,2]
[341244008,1730725832313,-500.0,0.00026927,2]
[341244011,1730725832323,-500.0,0.00026927,2]
[341244013,1730725832333,-500.0,0.00026927,2]
[341244014,1730725832342,-500.0,0.00026927,2]
[341244017,1730725832352,-500.0,0.00026927,2]
[341244019,1730725832361,-415.77811633,0.00026927,2]
[341244021,1730725832371,-500.0,0.00026927,2]
[341244023,1730725832380,-500.0,0.00026927,2]
[341244025,1730725832390,-500.0,0.00026927,2]
[341244027,1730725832399,-281.44466267,0.00026927,2]
[341244029,1730725832410,-500.0,0.00026927,2]
[341244031,1730725832419,-500.0,0.00026927,2]
[341244033,1730725832428,-500.0,0.00026927,2]
[341244035,1730725832438,-500.0,0.00026927,2]
[341244037,1730725832447,-499.99999999,0.00026927,2]
[341244039,1730725832457,-500.0,0.00026927,2]
[341244041,1730725832467,-500.0,0.00026927,2]
[341244043,1730725832476,-479.59475031,0.00026927,2]
[341244045,1730725832486,-4448.15156688,0.00026928,2]
[341244225,1730725835828,-20451.84843312,0.00026928,2]
[341244226,1730725835838,-653.07224336,0.00027213,2]
[341244227,1730725835847,-157.17,0.00027404,2]
[341244228,1730725835856,-531.03395927,0.00027413,2]
[341244229,1730725835866,-3480.98416139,0.00027413,2]
[341244230,1730725835875,-577.34140523,0.00027884,2]
[341244231,1730725835885,-249.95156726,0.00027884,2]
[341244232,1730725835894,-174.96609708,0.00027884,2]
[341244233,1730725835904,-653.07224332,0.00027885,2]
[341244234,1730725835913,-500.0,0.00028483,2]
[341244235,1730725835924,-150.0,0.00028538,2]
[341244236,1730725835933,-1141.0,0.00028538,2]
[341244237,1730725835942,-529.0,0.00028538,2]
[341244238,1730725835952,-2393.0,0.00028538,2]
[341244239,1730725835962,-653.07224332,0.00028557,2]
[341244240,1730725835971,-150.0,0.00029,2]
[341244241,1730725835981,-420.0,0.00029112,2]
[341244242,1730725835990,-653.07224332,0.00029228,2]
[341244243,1730725836000,-165.45,0.00029624,23]
[341244244,1730725836009,-306.7305604,0.00029794,2]
[341244245,1730725836019,-1000.0,0.00029853,2]
[341244246,1730725836028,-500.0,0.000299,2]
[341244247,1730725836037,-11133.25438753,0.000299,2]
[341244248,1730725836079,-359.9,0.000299,2]
[341244272,1730725838596,-12265.51829128,0.000299,2]
[341244274,1730725838606,-653.07224332,0.000299,2]
[341244275,1730725838615,-1000.0,0.000299,2]
[341244276,1730725838625,-500.7448973,0.00029973,5]
[341244277,1730725838634,-481.4,0.0002999,10]
[341244278,1730725838644,-811.07,0.0002999,3]
[341244279,1730725838653,-3039.89823719,0.00029999,2]
[341244280,1730725838662,-26874.3175792,0.0003,2]
[341244283,1730725840288,-57586.6981595,0.0003,2]
[341244337,1730725843348,-164.3994167,0.00026927,2]
[341244339,1730725843358,-197.93829585,0.00026927,2]
[341244341,1730725843367,-514.82289224,0.00026927,2]
[341244342,1730725843377,-279.09715604,0.00026927,2]
[341244344,1730725843386,-404.13898366,0.00028537,2]
[341244346,1730725843396,-401.17,0.0002999,10]
[341244348,1730725843405,-10023.60781869,0.0003,2]
[341244351,1730725843417,-152.97519731,0.0003,2]
[341244353,1730725843427,-13756.37582487,0.0003,2]
[341244393,1730725846209,-4366.53639464,0.00028456,2]
[341244394,1730725846219,-115178.4680261,0.0003,2]
[341244395,1730725846265,-3812.49575812,0.0003,2]
[341244396,1730725846278,-22247.92104697,0.0003,2]
[341244397,1730725846290,-5161.0,0.0003,2]
[341252413,1730726442233,160.212404,0.00013973,2]
[341252420,1730726798141,-160.212404,0.00020447,2]
[341252421,1730726798166,-236.3879053,0.00026542,2]
[341252422,1730726798188,-274.96222103,0.00026542,2]
[341252423,1730726798212,-500.0,0.00026542,2]
[341252424,1730726798235,-300.0,0.00026542,2]
[341252425,1730726798257,-300.0,0.00026542,2]
[341252426,1730726798282,-6942.56462867,0.00026543,2]
[341252427,1730726838110,-300.0,0.00026542,2]
[341252428,1730726838134,-1134.89865312,0.00026543,2]
[341252429,1730726854111,-1458.21062208,0.00026543,2]
[341252710,1730726925912,2786.48718147,0.00033663,120]
[341252715,1730726942714,2199.99,0.00020188,2]
[341253003,1730726952674,158.9362134,0.00013973,2]
[341253606,1730727032404,-2113.99999942,0.00023,2]
[341253608,1730727032414,-730.944081,0.00025948,2]
[341253611,1730727032424,-5000.0,0.00026542,2]
[341253613,1730727032433,-300.0,0.00026542,2]
[341253615,1730727032443,-15364.32609613,0.00026543,2]
[341253618,1730727032554,-730.944081,0.00026633,2]
[341253619,1730727032565,-160.212404,0.00026921,2]
[341253620,1730727032574,-166.475151,0.00027182,2]
[341253621,1730727032585,-730.944081,0.00027318,2]
[341253622,1730727032594,-282.89728856,0.00027989,2]
[341253624,1730727032604,-354.02263951,0.0002799,2]
[341253626,1730727032614,-3866.39363678,0.0002799,2]
[341253652,1730727032862,-737.67588901,0.0002799,2]
[341254105,1730727038723,-517.6807511,0.0002799,2]
[341254293,1730727040545,-997.85894042,0.0002799,2]
[341254295,1730727040557,-697.97634525,0.0002799,2]
[341254389,1730727043485,-19623.94402879,0.0002799,2]
[341254390,1730727043496,-3820.71934531,0.00028113,2]
[341254391,1730727043505,-181.402,0.00028213,19]
[341254392,1730727043515,-529.0,0.00028438,2]
[341254393,1730727043525,-1141.0,0.00028438,2]
[341254394,1730727043535,-2393.0,0.00028438,2]
[341254395,1730727043544,-500.0,0.00028625,5]
[341254396,1730727043554,-500.0,0.00028625,5]
[341254397,1730727043564,-420.0,0.00028708,2]
[341254398,1730727043574,-500.0,0.00028833,5]
[341254399,1730727043584,-500.82744298,0.000294,5]
[341254400,1730727043593,-158.056,0.0002955,2]
[341254401,1730727043603,-153.0,0.00029794,2]
[341254402,1730727043613,-153.0,0.00029794,2]
[341254403,1730727043622,-153.0,0.00029794,2]
[341254404,1730727043632,-360.6040947,0.00029794,2]
[341254405,1730727043641,-16604.81847606,0.00029844,2]
[341254406,1730727043651,-307.17705922,0.00029973,5]
[341254407,1730727043660,-500.0,0.00029973,5]
[341254408,1730727043670,-501.64979003,0.00029973,5]
[341254409,1730727043680,-153.02725519,0.00029973,5]
[341254410,1730727043689,-501.81888674,0.00029973,5]
[341254411,1730727043699,-500.0,0.00029973,5]
[341254412,1730727043708,-500.0,0.00029973,5]
[341254413,1730727043717,-500.0,0.00029973,5]
[341254414,1730727043727,-500.0,0.00029973,2]
[341254415,1730727043738,-500.0,0.00029973,5]
[341254416,1730727043748,-876.52,0.0002999,3]
[341254417,1730727043758,-334.31,0.0002999,10]
[341254418,1730727043768,-278.59,0.0002999,10]
[341254419,1730727043777,-1519.94911859,0.00029999,2]
[341254420,1730727043787,-130263.42315173,0.0003,2]
[341254421,1730727043796,-1357.77746048,0.0003,2]
[341254422,1730727043807,-1839.0,0.0003,4]
[341254423,1730727043818,-150.0,0.0003,30]
[341254424,1730727043828,-151.0,0.0003,120]
[341254425,1730727043838,-371.0,0.0003,2]
[341254426,1730727043848,-1397.8954495,0.0003,7]
[341254427,1730727043858,-3820.71934528,0.00030083,2]
[341254428,1730727043866,-500.0,0.00030137,2]
[341254429,1730727043875,-407.16295945,0.00030137,2]
[341254430,1730727043886,-500.0,0.00030137,2]
[341254431,1730727043896,-153.0,0.00030301,2]
[341254432,1730727043907,-153.0,0.00030301,2]
[341254433,1730727043917,-153.0,0.00030301,2]
[341254434,1730727043926,-371.0,0.00030411,2]
[341254435,1730727043936,-435.437286,0.00030685,2]
[341254436,1730727043946,-303.2483916,0.00030685,2]
[341254437,1730727043956,-153.0,0.00030685,2]
[341254438,1730727044044,-153.0,0.00030685,2]
[341254439,1730727044056,-303.2483916,0.00030685,2]
[341254440,1730727044066,-303.2483916,0.00030685,2]
[341254441,1730727044078,-153.0,0.00030685,2]
[341254442,1730727044087,-153.0,0.00030685,2]
[341254443,1730727044097,-153.0,0.00030685,2]
[341254444,1730727044107,-153.0,0.00030685,2]
[341254445,1730727044117,-153.0,0.00030849,2]
[341254446,1730727044126,-2000.0,0.00031,7]
[341254447,1730727044137,-164.0,0.00031,120]
[341254448,1730727044147,-587.0,0.00031051,2]
[341254449,1730727044157,-160.0,0.0003122,3]
[341254450,1730727044167,-1043.56590026,0.00031342,2]
[341254451,1730727044178,-339.712247,0.00031346,2]
[341254452,1730727044188,-228.901264,0.00031346,2]
[341254453,1730727044199,-641.4413,0.00031346,2]
[341254454,1730727044209,-150.112233,0.000314,16]
[341254455,1730727044219,-529.0,0.00031438,2]
[341254456,1730727044228,-1141.0,0.00031438,2]
[341254457,1730727044241,-2393.0,0.00031438,2]
[341254458,1730727044250,-165.3056832,0.00031452,2]
[341254459,1730727044259,-153.0,0.00031507,2]
[341254460,1730727044270,-211.1877169,0.00031507,2]
[341254461,1730727044280,-211.1877169,0.00031507,2]
[341254462,1730727044290,-211.1877169,0.00031507,2]
[341254463,1730727044301,-211.1877169,0.00031507,2]
[341254464,1730727044312,-153.0,0.00031507,2]
[341254465,1730727044322,-211.1877169,0.00031507,2]
[341254466,1730727044332,-1000.0,0.00031596,2]
[341254467,1730727044342,-371.0,0.00031644,2]
[341254468,1730727044351,-11133.25438753,0.00031696,2]
[341254469,1730727044362,-150.112233,0.000317,14]
[341254470,1730727044372,-339.712247,0.00031737,2]
[341254471,1730727044381,-228.901264,0.00031737,2]
[341254472,1730727044391,-641.4413,0.00031737,2]
[341254473,1730727044401,-381.33666301,0.00031773,5]
[341254474,1730727044411,-554.49841929,0.00031773,5]
[341254475,1730727044421,-500.0,0.00031773,5]
[341254476,1730727044430,-500.0,0.00031773,5]
[341254477,1730727044439,-500.0,0.00031773,5]
[341254478,1730727044448,-161.541478,0.00031795,10]
[341254479,1730727044458,-436078.79135585,0.00031796,2]
[341254480,1730727044468,-151.0,0.00031796,7]
[341254481,1730727044479,-173.63437,0.00031796,2]
[341254482,1730727044488,-151.0,0.00031796,7]
[341254483,1730727044497,-151.0,0.00031796,7]
[341254484,1730727044507,-151.0,0.00031796,7]
[341254485,1730727044516,-151.0,0.00031796,7]
[341254486,1730727044526,-151.0,0.00031796,7]
[341254487,1730727044536,-151.0,0.00031796,7]
[341254488,1730727044545,-151.0,0.00031796,7]
[341254489,1730727044555,-275.758504,0.00031796,7]
[341254490,1730727044565,-275.758504,0.00031796,7]
[341254491,1730727044574,-233.853089,0.00031796,7]
[341254492,1730727044584,-151.0,0.00031796,7]
[341254493,1730727044593,-151.0,0.00031796,7]
[341254494,1730727044604,-194.456893,0.00031796,7]
[341254495,1730727044614,-160.838007,0.00031796,7]
[341254496,1730727044623,-194.456893,0.00031796,7]
[341254497,1730727044633,-160.838007,0.00031796,7]
[341254498,1730727044642,-152.054696,0.00031796,7]
[341254499,1730727044652,-152.054696,0.00031796,7]
[341254500,1730727044661,-151.0,0.00031796,7]
[341254501,1730727044671,-151.0,0.00031796,7]
[341254502,1730727044681,-206.51316,0.00031796,7]
[341254503,1730727044690,-206.51316,0.00031796,7]
[341254504,1730727044700,-151.0,0.00031796,7]
[341254505,1730727044710,-151.0,0.00031796,7]
[341254506,1730727044721,-151.0,0.00031796,7]
[341254507,1730727044730,-151.0,0.00031796,7]
[341254508,1730727044740,-151.0,0.00031796,7]
[341254509,1730727044750,-1483.19,0.000318,120]
[341254510,1730727044761,-500.0,0.000319,2]
[341254511,1730727044771,-2049.32645139,0.00032,4]
[341254512,1730727044781,-7000.0,0.00032,5]
[341254513,1730727044791,-44851.67364553,0.00032,2]
[341254514,1730727044801,-162.0,0.00032,120]
[341254515,1730727044812,-150.0,0.00032,2]
[341254516,1730727044821,-151.0,0.00032,120]
[341254517,1730727044832,-151.0,0.00032,7]
[341254518,1730727044842,-151.0,0.00032,7]
[341254519,1730727044853,-151.0,0.00032,7]
[341254520,1730727044863,-151.0,0.00032,7]
[341254521,1730727044873,-151.0,0.00032,7]
[341254522,1730727044883,-151.0,0.00032,7]
[341254523,1730727044894,-151.0,0.00032,7]
[341254524,1730727044904,-151.0,0.00032,7]
[341254525,1730727044914,-151.0,0.00032,7]
[341254526,1730727044924,-192.221324,0.00032,7]
[341254527,1730727044934,-275.758504,0.00032,7]
[341254528,1730727044945,-275.758504,0.00032,7]
[341254529,1730727044955,-150.112233,0.00032,19]
[341254530,1730727044966,-151.0,0.00032,7]
[341254531,1730727044976,-151.0,0.00032,7]
[341254532,1730727044986,-194.456893,0.00032,7]
[341254533,1730727044996,-160.838007,0.00032,7]
[341254534,1730727045006,-194.456893,0.00032,7]
[341254535,1730727045016,-160.838007,0.00032,7]
[341254536,1730727045026,-152.054696,0.00032,7]
[341254537,1730727045036,-152.054696,0.00032,7]
[341254538,1730727045046,-151.0,0.00032,7]
[341254539,1730727045056,-206.51316,0.00032,7]
[341254540,1730727045067,-206.51316,0.00032,7]
[341254541,1730727045079,-151.0,0.00032,7]
[341254542,1730727045089,-151.0,0.00032,7]
[341254543,1730727045100,-151.0,0.00032,7]
[341254544,1730727045111,-151.0,0.00032,7]
[341254545,1730727045121,-249.610022,0.00032,7]
[341254546,1730727045132,-151.0,0.00032,7]
[341254547,1730727045142,-250.89847,0.00032,7]
[341254548,1730727045151,-466.041646,0.00032,7]
[341254549,1730727045162,-466.041646,0.00032,7]
[341254550,1730727045171,-891.0366702,0.00032015,2]
[341254551,1730727045181,-3820.71934528,0.00032052,2]
[341254552,1730727045190,-339.712247,0.00032129,2]
[341254553,1730727045200,-228.901264,0.00032129,2]
[341254554,1730727045210,-641.4413,0.00032129,2]
[341254555,1730727045220,-600.0,0.00032162,2]
[341254556,1730727045230,-150.112233,0.000323,12]
[341254557,1730727045246,-150.112237,0.000323,16]
[341254558,1730727045256,-150.112233,0.000323,20]
[341254559,1730727045266,-153.0,0.00032329,2]
[341254560,1730727045276,-153.0,0.00032329,2]
[341254561,1730727045287,-153.0,0.00032329,2]
[341254562,1730727045297,-153.0,0.00032329,2]
[341254563,1730727045308,-211.1877169,0.00032329,2]
[341254564,1730727045320,-211.1877169,0.00032329,2]
[341254565,1730727045330,-600.0,0.00032497,2]
[341254566,1730727045340,-4760.0,0.000325,2]
[341254567,1730727045349,-2000.0,0.000325,4]
[341254568,1730727045360,-891.0366702,0.00032515,2]
[341254569,1730727045370,-339.712247,0.00032521,2]
[341254570,1730727045380,-228.901264,0.00032521,2]
[341254571,1730727045390,-641.4413,0.00032521,2]
[341254572,1730727045401,-151.0,0.00032575,7]
[341254573,1730727045411,-151.0,0.00032575,7]
[341254574,1730727045420,-151.0,0.00032575,7]
[341254575,1730727045430,-151.0,0.00032575,7]
[341254576,1730727045440,-151.0,0.00032575,7]
[341254577,1730727045450,-151.0,0.00032575,7]
[341254578,1730727045461,-151.0,0.00032575,7]
[341254579,1730727045471,-151.0,0.00032575,7]
[341254580,1730727045482,-151.0,0.00032575,7]
[341254581,1730727045494,-275.758504,0.00032575,7]
[341254582,1730727045503,-275.758504,0.00032575,7]
[341254583,1730727045513,-151.0,0.00032575,7]
[341254584,1730727045523,-151.0,0.00032575,7]
[341254585,1730727045532,-194.456893,0.00032575,7]
[341254586,1730727045542,-160.838007,0.00032575,7]
[341254587,1730727045552,-194.456893,0.00032575,7]
[341254588,1730727045562,-160.838007,0.00032575,7]
[341254589,1730727045572,-152.054696,0.00032575,7]
[341254590,1730727045583,-152.054696,0.00032575,7]
[341254591,1730727045594,-151.0,0.00032575,7]
[341254592,1730727045604,-206.51316,0.00032575,7]
[341254593,1730727045614,-206.51316,0.00032575,7]
[341254594,1730727045624,-151.0,0.00032575,7]
[341254595,1730727045635,-151.0,0.00032575,7]
[341254596,1730727045645,-151.0,0.00032575,7]
[341254597,1730727045655,-151.0,0.00032575,7]
[341254598,1730727045665,-151.0,0.00032575,7]
[341254599,1730727045676,-466.041646,0.00032575,7]
[341254600,1730727045686,-466.041646,0.00032575,7]
[341254601,1730727045696,-190.0,0.00032575,2]
[341254602,1730727045707,-190.0,0.00032575,2]
[341254603,1730727045718,-190.0,0.00032575,2]
[341254604,1730727045727,-190.0,0.00032575,2]
[341254605,1730727045737,-190.0,0.00032575,2]
[341254606,1730727045748,-190.0,0.00032575,2]
[341254607,1730727045757,-190.0,0.00032575,2]
[341254608,1730727045767,-190.0,0.00032575,2]
[341254609,1730727045852,-190.0,0.00032575,2]
[341254610,1730727045862,-190.0,0.00032575,2]
[341254611,1730727045871,-190.0,0.00032575,2]
[341254612,1730727045880,-190.0,0.00032575,2]
[341254613,1730727045891,-190.0,0.00032575,2]
[341254614,1730727045902,-190.0,0.00032575,2]
[341254615,1730727045912,-190.0,0.00032575,2]
[341254616,1730727045923,-190.0,0.00032575,2]
[341254617,1730727045933,-190.0,0.00032575,2]
[341254618,1730727045944,-153.0,0.00032575,2]
[341254619,1730727045954,-153.0,0.00032575,2]
[341254620,1730727045964,-190.0,0.00032575,2]
[341254621,1730727045974,-190.0,0.00032575,2]
[341254622,1730727045985,-190.0,0.00032575,2]
[341254623,1730727045995,-190.0,0.00032575,2]
[341254624,1730727046004,-190.0,0.00032575,2]
[341254625,1730727046013,-190.0,0.00032575,2]
[341254626,1730727046024,-190.0,0.00032575,2]
[341254627,1730727046035,-190.0,0.00032575,2]
[341254628,1730727046045,-190.0,0.00032575,2]
[341254629,1730727046055,-190.0,0.00032575,2]
[341254630,1730727046065,-190.0,0.00032575,2]
[341254631,1730727046075,-190.0,0.00032575,2]
[341254632,1730727046085,-190.0,0.00032575,2]
[341254633,1730727046095,-190.0,0.00032575,2]
[341254634,1730727046104,-153.0,0.00032575,2]
[341254635,1730727046113,-153.0,0.00032575,2]
[341254636,1730727046123,-190.0,0.00032575,2]
[341254637,1730727046133,-190.0,0.00032575,2]
[341254638,1730727046143,-190.0,0.00032575,2]
[341254639,1730727046152,-190.0,0.00032575,2]
[341254640,1730727046162,-190.0,0.00032575,2]
[341254641,1730727046172,-190.0,0.00032575,2]
[341254642,1730727046182,-190.0,0.00032575,2]
[341254643,1730727046191,-190.0,0.00032575,2]
[341254644,1730727046202,-190.0,0.00032575,2]
[341254645,1730727046211,-190.0,0.00032575,2]
[341254646,1730727046220,-190.0,0.00032575,2]
[341254647,1730727046230,-190.0,0.00032575,2]
[341254648,1730727046244,-190.0,0.00032575,2]
[341254649,1730727046253,-190.0,0.00032575,2]
[341254650,1730727046263,-153.0,0.00032575,2]
[341254651,1730727046272,-153.0,0.00032575,2]
[341254652,1730727046282,-190.0,0.00032575,2]
[341254653,1730727046292,-190.0,0.00032575,2]
[341254654,1730727046303,-190.0,0.00032575,2]
[341254655,1730727046313,-190.0,0.00032575,2]
[341254656,1730727046323,-190.0,0.00032575,2]
[341254657,1730727046332,-190.0,0.00032575,2]
[341254658,1730727046341,-190.0,0.00032575,2]
[341254659,1730727046351,-190.0,0.00032575,2]
[341254660,1730727046361,-190.0,0.00032575,2]
[341254661,1730727046371,-190.0,0.00032575,2]
[341254662,1730727046381,-190.0,0.00032575,2]
[341254663,1730727046391,-190.0,0.00032575,2]
[341254664,1730727046400,-190.0,0.00032575,2]
[341254665,1730727046409,-190.0,0.00032575,2]